bitfinex/quotes_ETHUSD_20250422
["timestamp","ask_amount","ask_price","bid_price","bid_amount"]
[1745356920378,5.8259741,1716.5,1716.2,0.19]
[1745356920531,5.82596915,1716.5,1716.2,0.19]
[1745356920723,25.20985922,1716.4,1716.2,0.19]
[1745356920925,5.82648721,1716.3,1716.2,0.19]
[1745356921169,0.14578773,1716.3,1716.2,0.19]
[1745356921328,0.14578773,1716.3,1715.9,0.19]
[1745356921525,0.14578773,1716.3,1716.2,0.19]
[1745356921756,19.237,1717.0,1716.9,0.19]
[1745356921962,0.005,1717.1,1717.0,0.19]
[1745356922545,0.005,1717.1,1717.0,0.8376]
[1745356923327,0.005,1717.1,1717.0,0.19]
[1745356923534,2.9706763,1720.1,1718.9,5.81748693]
[1745356923734,5.56e-06,1720.0,1719.0,0.79251056]
[1745356923940,5.56e-06,1720.0,1719.9,12.97609589]
[1745356924172,5.56e-06,1720.0,1719.4,1.95284818]
[1745356924466,5.56e-06,1720.0,1719.0,0.58174869]
[1745356924665,5.81429152,1719.9,1718.1,0.6426]
[1745356924889,0.58142915,1719.8,1718.2,6.92380735]
[1745356925201,5.81831245,1718.8,1717.4,0.6426]
[1745356925402,5.81958028,1718.4,1717.4,0.6426]
[1745356925689,5.82057426,1718.1,1717.4,0.6426]
[1745356925886,5.81530588,1719.6,1718.1,0.6426]
[1745356926096,5.81127763,1720.8,1718.8,0.6426]
[1745356926298,5.81260709,1720.4,1718.8,0.6426]
[1745356926516,0.7925,1719.9,1718.2,0.6426]
[1745356926657,5.81496772,1719.7,1718.2,0.6426]
[1745356926864,0.55,1718.7,1717.8,0.6426]
[1745356927059,0.55,1718.7,1717.4,0.6426]
[1745356927060,0.55,1718.3,1717.4,0.6426]
[1745356927406,5.81130276,1720.8,1718.6,21.714762]
[1745356927566,0.7925,1720.1,1718.7,4.02966647]
[1745356927771,5.81558484,1719.6,1717.8,3.0]
[1745356927979,0.7925,1720.1,1717.5,0.2]
[1745356928166,5.81222081,1720.6,1718.6,0.2]
[1745356928359,5.81222081,1720.6,1718.5,9.23640955]
[1745356928360,6.60378334,1720.8,1719.4,0.6426]
[1745356928557,0.7925,1720.8,1719.4,0.6426]
[1745356929270,0.7925,1720.8,1719.6,3.0]
[1745356929472,1.2077402,1722.7,1720.3,12.16904027]
[1745356929684,1.2077402,1722.7,1719.9,3.0]
[1745356929685,1.2077402,1722.7,1720.4,1.76412464]
[1745356930000,0.7925,1721.5,1719.6,0.3]
[1745356930170,12.23640955,1721.3,1719.5,5.81535552]
[1745356930495,5.81244895,1720.5,1718.9,15.05381455]
[1745356930714,5.80944432,1721.4,1718.9,15.05381455]
[1745356930715,0.75,1721.9,1720.5,2.27675]
[1745356930892,0.75,1721.9,1721.0,9.23640955]
[1745356931068,0.2,1726.1,1722.6,0.2]
[1745356931268,5.81291677,1726.3,1725.0,5.7969615]
[1745356931269,0.02,1726.3,1725.0,5.7969615]
[1745356931465,0.02,1726.3,1725.3,5.7959413]
[1745356931771,0.02,1726.3,1725.1,22.92294042]
[1745356931772,0.48035355,1728.5,1725.4,21.98932456]
[1745356932001,0.04716368,1728.5,1725.5,0.2]
[1745356932174,0.1076913,1728.4,1727.1,0.2]
[1745356932499,0.1076913,1728.4,1725.6,21.883345]
[1745356932500,0.6787449,1732.0,1730.0,159.0]
[1745356932699,0.7182461,1732.0,1730.1,27.95149027]
[1745356932903,3.60514537,1733.5,1730.1,27.95149027]
[1745356932904,5.76845736,1733.6,1730.9,0.2]
[1745356933205,34.03801044,1733.4,1731.0,0.67691103]
[1745356933511,5.76763106,1733.9,1730.5,11.45506596]
[1745356933805,0.9588,1734.4,1730.1,6.17383693]
[1745356933806,5.7704529,1733.0,1731.1,0.1056306]
[1745356933968,0.2,1732.7,1731.1,0.1056306]
[1745356934170,0.2,1732.4,1730.0,159.0]
[1745356934379,18.68773063,1732.7,1730.0,159.0]
[1745356934708,0.2,1731.4,1730.0,132.01337599]
[1745356934925,8.67122957,1732.5,1730.0,132.01337599]
[1745356934926,0.7588,1733.2,1730.0,132.01337599]
[1745356935076,7.655,1735.7,1730.0,132.01337599]
[1745356935077,5.76243415,1735.4,1731.6,8.5981743]
[1745356935270,20.8088,1735.0,1732.3,3.02420874]
[1745356935572,20.05,1735.0,1732.4,0.195]
[1745356935764,20.05,1735.0,1732.9,0.195]
[1745356935967,20.05,1735.0,1732.7,0.195]
[1745356936184,2.005,1734.9,1732.2,0.195]
[1745356936522,2.005,1734.9,1731.2,0.195]
[1745356936523,0.7588,1734.2,1731.2,0.195]
[1745356936708,0.7588,1733.1,1730.6,0.195]
[1745356936874,0.7588,1734.7,1731.8,0.195]
[1745356937072,0.03596759,1734.6,1733.2,0.195]
[1745356937428,0.03596759,1734.6,1730.7,12.24579942]
[1745356937429,5.76200011,1735.6,1733.5,0.195]
[1745356937633,2.005,1734.9,1732.9,0.195]
[1745356937931,0.7588,1733.9,1731.6,0.195]
[1745356938139,19.102,1734.8,1730.0,132.01337599]
[1745356938140,5.77669055,1731.1,1730.0,132.01337599]
[1745356938301,5.77933189,1730.4,1730.0,132.01337599]
[1745356938490,5.77945505,1730.3,1730.0,132.01337599]
[1745356938694,5.78001271,1730.1,1730.0,132.01337599]
[1745356938891,5.78001271,1730.1,1727.3,5.78917634]
[1745356938892,0.7588,1730.5,1728.1,0.195]
[1745356939091,2.83231387,1730.2,1727.9,0.195]
[1745356939327,0.7588,1730.2,1728.0,0.195]
[1745356939538,19.102,1730.1,1728.4,0.195]
[1745356939689,1.9102,1730.0,1728.0,0.195]
[1745356940033,5.78391733,1729.0,1726.9,0.195]
[1745356940193,5.78391733,1729.0,1726.5,0.6537449]
[1745356940194,19.8478,1728.9,1727.3,0.195]
[1745356940395,2.85293514,1731.3,1726.5,0.6537449]
[1745356940396,19.089,1729.1,1727.5,0.195]
[1745356940595,5.78402452,1728.9,1727.3,0.195]
[1745356940795,5.7846937,1728.7,1726.5,0.8487449]
[1745356941038,0.57840245,1728.8,1726.7,0.195]
[1745356941327,5.78502834,1728.6,1726.5,0.8487449]
[1745356941494,11.45506596,1728.5,1726.5,0.6537449]
[1745356941695,5.79110236,1726.8,1726.5,0.6537449]
[1745356942000,5.79172101,1726.7,1726.5,0.6537449]
[1745356942194,5.79132433,1726.8,1726.5,0.6537449]
[1745356942410,19.089,1726.9,1726.5,0.6537449]
[1745356942835,24.87983231,1726.9,1726.5,0.6537449]
[1745356943042,19.089,1726.9,1726.5,0.6537449]
[1745356943678,5.78502834,1728.6,1727.4,0.195]
[1745356943793,5.78701664,1728.1,1727.4,0.195]
[1745356943995,0.7588,1728.7,1726.5,0.6537449]
[1745356943996,5.78068096,1729.9,1728.0,0.195]
[1745356944241,1.9102,1730.0,1727.5,0.195]
[1745356944449,1.9102,1730.0,1727.8,0.195]
[1745356944602,5.78528034,1728.6,1727.7,0.195]
[1745356944791,19.091,1728.8,1727.6,0.195]
[1745356944991,19.091,1728.8,1726.7,0.195]
[1745356944992,5.78831909,1727.7,1726.7,0.195]
[1745356945239,19.091,1727.7,1727.0,0.195]
[1745356945392,19.091,1727.7,1726.6,0.195]
[1745356945598,3.0,1727.5,1726.5,0.6537449]
[1745356945838,3.0,1727.5,1725.6,6.6951]
[1745356945839,0.7588,1727.3,1725.6,6.6951]
[1745356946135,8.79139398,1726.7,1725.6,6.6951]
[1745356946308,5.79264034,1726.4,1725.8,0.195]
[1745356946511,5.79229118,1726.5,1725.8,0.195]
[1745356946709,3.0,1727.6,1726.6,0.195]
[1745356947037,11.45506596,1728.6,1726.6,0.195]
[1745356947038,6.57322202,1730.7,1728.8,0.195]
[1745356947335,19.088,1730.5,1729.0,0.195]
[1745356947558,19.088,1730.5,1727.5,5.78846377]
[1745356947559,11.45506596,1730.1,1728.2,0.195]
[1745356947714,11.45506596,1730.1,1727.9,0.195]
[1745356947715,5.78101514,1729.8,1727.9,0.195]
[1745356947914,5.78313052,1729.2,1728.1,0.195]
[1745356948143,5.78227088,1729.5,1726.6,5.79172234]
[1745356948144,5.78368999,1729.0,1727.9,0.195]
[1745356948345,0.7951,1730.9,1729.4,0.195]
[1745356948546,0.7951,1730.9,1728.0,20.148068]
[1745356948547,0.7951,1730.9,1729.3,0.195]
[1745356948712,0.7951,1730.9,1728.6,0.195]
[1745356948914,5.78130192,1729.8,1728.9,0.195]
[1745356949264,19.085,1730.2,1729.3,0.195]
[1745356949416,1.9085,1730.1,1728.7,0.195]
[1745356949616,1.9085,1730.1,1729.2,0.195]
[1745356949814,1.9085,1730.1,1727.7,5.7878508]
[1745356949815,1.9085,1730.1,1729.1,0.195]
[1745356950011,1.9085,1730.1,1728.9,0.195]
[1745356950342,19.085,1730.2,1729.4,0.195]
[1745356950544,19.085,1730.2,1729.5,0.195]
[1745356950915,19.085,1730.2,1729.2,0.195]
[1745356951119,5.78062904,1730.0,1729.3,0.195]
[1745356951427,6.33075637,1729.9,1729.0,0.195]
[1745356951615,0.55,1729.9,1729.3,0.195]
[1745356951818,5.77826824,1730.7,1729.6,0.195]
[1745356952039,5.77607238,1731.3,1730.1,0.195]
[1745356952040,5.77660022,1731.2,1730.1,0.195]
[1745356952240,5.77748723,1730.9,1729.5,0.195]
[1745356952439,5.77920421,1730.4,1729.5,0.195]
[1745356952644,19.078,1730.3,1729.5,0.195]
[1745356952825,3.0,1730.2,1729.5,0.195]
[1745356953026,0.55,1730.1,1726.8,5.79088421]
[1745356953254,0.55,1730.1,1726.6,33.39034998]
[1745356953255,0.55,1728.8,1728.3,0.195]
[1745356953552,0.55,1728.8,1727.3,0.195]
[1745356953553,5.78738635,1727.9,1727.3,0.195]
[1745356953716,0.55,1727.6,1727.2,0.195]
[1745356953919,0.55,1727.6,1726.7,0.195]
[1745356954139,3.55,1727.3,1726.2,0.195]
[1745356954351,0.55,1726.6,1725.8,0.195]
[1745356954651,1.31078116,1729.3,1727.5,0.195]
[1745356954836,19.081,1729.7,1728.0,0.195]
[1745356955039,19.081,1729.7,1728.3,0.195]
[1745356955040,20.9891,1729.7,1728.3,0.195]
[1745356955241,26.77075608,1729.7,1728.4,0.195]
[1745356955549,20.9891,1729.7,1728.8,0.195]
[1745356955753,19.081,1729.7,1729.3,0.195]
[1745356956119,19.081,1729.7,1728.8,0.195]
[1745356956454,0.55,1729.1,1728.5,0.195]
[1745356956637,0.55,1728.8,1728.0,0.195]
[1745356956836,19.081,1728.7,1728.5,0.195]
[1745356957054,0.55,1728.9,1728.5,0.195]
[1745356957250,6.33421045,1728.9,1728.1,0.195]
[1745356957451,5.78463475,1728.8,1728.1,0.195]
[1745356957651,3.55,1728.8,1727.9,0.195]
[1745356957858,0.55,1728.7,1727.9,0.195]
[1745356958169,0.55,1728.3,1727.9,0.195]
[1745356958324,0.55,1728.1,1727.1,0.195]
[1745356958525,0.55,1728.1,1725.8,5.79436433]
[1745356958526,6.175,1731.1,1728.3,0.2]
[1745356958721,0.7951,1732.3,1727.2,19.08]
[1745356958722,0.7951,1732.3,1730.7,0.195]
[1745356958928,0.7951,1732.3,1728.9,5.78400722]
[1745356958929,6.68144778,1732.9,1730.9,0.195]
[1745356959122,11.45506596,1732.5,1730.1,0.195]
[1745356959369,11.45506596,1731.9,1729.7,0.195]
[1745356959665,5.77767506,1730.8,1729.1,0.195]
[1745356959864,0.55,1729.1,1728.9,0.195]
[1745356960033,0.55,1729.1,1727.8,0.01269989]
[1745356960034,0.55,1728.7,1728.5,0.195]
[1745356960348,0.55,1728.7,1726.7,5.79124735]
[1745356960349,19.08,1729.1,1728.6,0.195]
[1745356960531,0.55,1729.0,1728.4,0.195]
[1745356960730,0.55,1729.0,1728.5,0.195]
[1745356961062,3.7951,1728.9,1727.8,0.195]
[1745356961264,19.08,1729.1,1727.9,0.195]
[1745356961560,0.55,1729.0,1728.2,0.195]
[1745356961724,3.55,1728.7,1727.5,0.195]
[1745356961921,3.55,1728.7,1727.8,0.195]
[1745356961922,0.55,1728.2,1727.8,0.195]
[1745356962124,0.55,1728.0,1727.4,0.195]
[1745356962349,0.005,1730.5,1727.3,0.195]
[1745356962561,0.7561,1731.1,1729.4,0.195]
[1745356962743,5.78287067,1729.3,1728.4,0.195]
[1745356962960,5.78374268,1729.0,1728.6,0.195]
[1745356963146,5.78122004,1729.8,1727.9,0.195]
[1745356963346,0.7604,1730.6,1728.0,0.195]
[1745356963656,3.0,1729.2,1727.9,0.195]
[1745356963871,3.0,1729.2,1726.5,5.79188031]
[1745356963872,3.55,1728.7,1727.5,0.195]
[1745356964183,3.55,1728.7,1726.3,2.89054498]
[1745356964184,5.7859683,1728.4,1727.6,0.195]
[1745356964357,6.53641293,1731.3,1729.3,0.195]
[1745356964553,5.77771399,1730.8,1728.9,0.195]
[1745356964754,5.77771399,1730.8,1727.2,11.65506596]
[1745356964755,5.77901063,1730.4,1729.1,0.195]
[1745356964954,5.78001271,1730.1,1728.3,0.195]
[1745356965157,3.7604,1730.4,1728.7,0.195]
[1745356965388,5.78402452,1728.9,1726.6,0.87237091]
[1745356965678,5.78706362,1728.0,1726.4,5.79213724]
[1745356965852,5.78575796,1728.4,1726.1,5.7933224]
[1745356965853,0.55,1728.3,1726.1,5.7934071]
[1745356966246,5.78871201,1727.5,1725.5,2.8477106]
[1745356966406,0.55,1727.4,1725.3,0.2]
[1745356966556,19.075,1727.6,1725.2,0.2]
[1745356966859,20.9825,1727.6,1725.9,5.79377293]
[1745356967062,0.55,1727.5,1726.4,5.79216436]
[1745356967260,0.55,1727.5,1726.1,5.79314547]
[1745356967486,20.9825,1727.6,1726.0,5.79347832]
[1745356967659,20.9825,1727.6,1725.7,0.66951]
[1745356967660,0.55,1727.5,1725.9,3.0]
[1745356967860,0.55,1727.5,1726.1,5.79321064]
[1745356968062,6.33899344,1727.5,1725.7,0.66951]
[1745356968388,0.55,1727.4,1725.9,5.79394988]
[1745356968586,6.33920753,1727.4,1726.0,0.05791901]
[1745356968796,0.55,1727.4,1726.1,0.05792534]
[1745356968971,0.55,1727.4,1725.7,0.66951]
[1745356969157,19.075,1727.6,1726.5,3.0]
[1745356969357,19.075,1727.6,1726.4,3.0]
[1745356969687,0.55,1727.5,1726.3,3.0]
[1745356970005,6.33883962,1727.5,1725.7,3.66951]
[1745356970186,5.79022933,1727.1,1725.7,0.66951]
[1745356970391,0.55,1727.0,1725.8,0.05792541]
[1745356970555,3.0,1727.4,1725.8,0.05792541]
[1745356970556,0.55,1727.2,1725.8,0.05792541]
[1745356970753,0.55,1727.0,1725.8,0.05792541]
[1745356970952,6.34066511,1727.0,1725.8,0.05792742]
[1745356971255,0.55,1726.8,1725.8,0.05792742]
[1745356971456,0.55,1726.6,1725.8,0.05792742]
[1745356971689,0.55,1726.6,1725.6,6.6951]
[1745356971690,6.34191106,1726.6,1725.6,6.6951]
[1745356971892,0.55,1726.6,1725.6,6.6951]
[1745356972062,6.3417574,1726.6,1725.6,6.6951]
[1745356972259,3.09257574,1726.6,1725.6,6.6951]
[1745356972587,0.55,1726.3,1725.6,6.6951]
[1745356972979,19.8444,1726.7,1725.7,0.05794113]
[1745356972980,19.084,1726.7,1725.7,0.05794113]
[1745356973173,19.084,1726.7,1725.7,3.0]
[1745356973377,19.084,1726.7,1725.9,5.79407561]
[1745356973579,19.084,1726.7,1725.7,3.0]
[1745356973787,19.084,1726.7,1725.7,4.54898949]
[1745356973992,0.55,1726.6,1725.7,4.54898949]
[1745356974195,0.55,1726.6,1725.7,10.34357145]
[1745356974377,0.55,1726.6,1725.6,6.6951]
[1745356974703,0.55,1726.3,1725.6,6.6951]
[1745356974900,0.55,1726.4,1725.6,6.6951]
[1745356975107,0.55,1726.2,1725.6,6.6951]
[1745356975404,0.55,1726.6,1725.6,6.6951]
[1745356975702,6.34196247,1726.6,1725.6,6.6951]
[1745356975915,0.7604,1728.2,1725.7,3.0]
[1745356976121,0.7604,1728.7,1726.4,11.45506596]
[1745356976403,5.78518399,1728.6,1726.6,5.79172941]
[1745356976579,5.78512046,1728.6,1727.2,5.78949425]
[1745356976782,5.78485976,1728.7,1727.3,9.36817212]
[1745356976987,19.094,1728.6,1727.6,3.0]
[1745356977178,19.094,1728.6,1727.3,0.57894943]
[1745356977380,19.094,1728.6,1726.7,8.79125593]
[1745356977592,5.78654143,1728.2,1726.9,3.0]
[1745356977793,3.0,1728.4,1726.7,5.79129614]
[1745356978008,5.78643148,1728.2,1726.8,0.0578878]
[1745356978206,3.0,1728.4,1726.8,0.0578878]
[1745356978519,5.78619755,1728.3,1727.0,3.0]
[1745356978713,5.78687074,1728.1,1727.1,0.05788345]
[1745356978881,5.7863951,1728.2,1727.1,0.05788345]
[1745356979081,3.0,1728.5,1726.7,3.0]
[1745356979300,0.55,1728.0,1726.8,0.05789318]
[1745356979580,0.55,1727.7,1725.9,19.091]
[1745356979779,0.55,1727.7,1726.3,5.79250216]
[1745356979780,25.42905918,1727.7,1726.3,5.79250216]
[1745356980084,25.42905918,1727.7,1726.4,0.05790186]
[1745356980085,6.175,1727.6,1726.4,0.05790186]
[1745356980290,0.55,1727.6,1726.1,5.79330139]
[1745356980485,0.55,1727.4,1726.2,5.79298239]
[1745356980674,6.3391611,1727.4,1726.2,1.15862838]
[1745356980877,5.79039873,1727.0,1725.7,5.79474995]
[1745356981227,0.55,1726.9,1725.6,7.37040502]
[1745356981439,6.34144979,1726.7,1725.6,7.37040502]
[1745356981747,0.55,1726.7,1725.6,6.6951]
[1745356981929,5.79172941,1726.6,1725.6,6.6951]
[1745356982245,0.55,1726.1,1725.6,6.6951]
[1745356982552,0.55,1726.5,1725.6,6.6951]
[1745356982705,0.55,1725.9,1725.6,6.6951]
[1745356982907,19.642,1725.9,1725.6,6.6951]
[1745356983206,6.34474995,1725.7,1725.6,6.6951]
[1745356983400,6.34474995,1725.7,1725.6,6.17204531]
[1745356983606,6.34474995,1725.7,1725.6,5.25588233]
[1745356983956,0.55,1725.7,1725.6,5.25588233]
[1745356984104,6.34474995,1725.7,1725.6,5.25588233]
[1745356985122,0.55,1725.7,1725.6,5.25588233]
[1745356985644,6.34474995,1725.7,1725.6,5.25588233]
[1745356985843,1.76393323,1725.7,1725.6,4.3363281]
[1745356986151,9.3457575,1725.4,1723.2,0.43917022]
[1745356986333,0.55,1724.9,1723.1,5.8034937]
[1745356986530,0.55,1724.9,1723.0,0.79244581]
[1745356987064,6.34816397,1724.7,1723.1,0.30774273]
[1745356987232,19.098,1725.0,1723.1,0.30774273]
[1745356987233,6.3476882,1724.9,1723.2,5.80315691]
[1745356987432,6.3476882,1724.9,1723.1,0.30774273]
[1745356987433,3.09456882,1724.9,1723.3,0.58031569]
[1745356987666,5.79795033,1724.8,1723.1,5.80343732]
[1745356987867,8.892249,1724.9,1723.6,3.0]
[1745356988157,8.89219118,1724.9,1723.7,0.05800061]
[1745356988366,19.098,1725.0,1724.2,5.79957856]
[1745356988569,5.79556097,1725.5,1724.3,3.0]
[1745356988857,26.88215058,1725.7,1724.1,3.0]
[1745356989065,0.55,1725.4,1724.1,3.0]
[1745356989355,5.79569522,1725.5,1724.2,3.0]
[1745356989527,5.79585203,1725.4,1724.2,3.87999371]
[1745356989871,5.79585203,1725.4,1724.2,0.87999371]
[1745356990169,0.55,1725.3,1724.1,3.0]
[1745356990325,0.55,1725.4,1723.7,5.80145797]
[1745356990529,5.79592019,1725.4,1724.1,3.0]
[1745356990746,0.55,1725.3,1724.1,3.0]
[1745356990927,0.55,1725.3,1724.1,10.26015726]
[1745356991264,0.55,1725.3,1724.1,1.46005283]
[1745356991444,0.55,1725.6,1724.3,3.0]
[1745356991647,6.3453202,1725.6,1724.3,3.0]
[1745356991857,6.34523134,1725.6,1724.3,3.0]
[1745356992032,5.7955815,1725.5,1724.3,3.0]
[1745356992227,5.79561487,1725.5,1724.0,5.80034224]
[1745356992443,0.55,1725.3,1724.1,9.37996611]
[1745356992648,0.55,1725.3,1724.3,3.0]
[1745356992844,0.55,1725.3,1724.2,3.0]
[1745356993047,0.8072,1727.1,1725.8,3.0]
[1745356993397,19.9152,1727.6,1726.2,5.79282047]
[1745356993569,1.99152,1727.5,1726.3,0.0579124]
[1745356993729,1.99152,1727.5,1724.9,3.0]
[1745356993931,0.8072,1727.4,1725.2,3.0]
[1745356994253,0.8072,1726.5,1724.2,11.45506596]
[1745356994452,0.55,1725.9,1724.5,5.79876772]
[1745356994633,0.55,1725.0,1724.1,0.58003422]
[1745356994837,0.55,1725.0,1723.8,5.80094723]
[1745356995071,6.34698637,1725.1,1723.7,5.80128889]
[1745356995282,0.55,1724.9,1723.4,19.11]
[1745356995579,5.79711133,1725.0,1723.2,5.80309847]
[1745356995580,5.79716153,1725.0,1723.6,5.80152386]
[1745356995777,0.55,1725.1,1723.9,5.80066775]
[1745356995979,0.55,1725.1,1723.9,0.58006677]
[1745356996326,0.55,1725.1,1724.0,0.05799204]
[1745356996434,0.55,1725.1,1724.0,5.85843697]
[1745356996641,0.55,1725.1,1724.0,0.05799204]
[1745356996881,0.55,1725.1,1723.8,5.80096829]
[1745356997040,6.34693082,1725.1,1723.8,5.80096829]
[1745356997242,5.79726156,1725.0,1723.9,0.58009683]
[1745356997443,5.79730708,1725.0,1723.7,5.80141462]
[1745356997658,6.34691809,1725.1,1723.7,5.80130031]
[1745356997858,0.55,1725.1,1723.7,3.0]
[1745356998181,0.55,1724.7,1723.6,3.0]
[1745356998484,0.55,1724.7,1723.7,0.05800379]
[1745356998649,6.348327,1724.7,1723.5,0.05800379]
[1745356998853,0.55,1724.7,1722.5,17.2604601]
[1745356999044,0.55,1724.2,1722.9,5.80394706]
[1745356999244,0.55,1724.2,1723.0,6.11362217]
[1745356999449,0.55,1724.2,1723.0,0.30983131]
[1745356999753,0.55,1724.2,1723.0,6.11352766]
[1745356999955,0.55,1724.2,1723.1,0.61135277]
[1745357000256,5.79614897,1725.3,1724.0,5.80033889]
[1745357000561,5.79614897,1725.3,1723.8,3.0]
[1745357000562,5.79555865,1725.5,1724.1,5.85780544]
[1745357000872,0.8072,1725.6,1724.2,8.79960815]
[1745357001072,0.8072,1725.6,1724.2,1.45995548]
[1745357001282,0.8072,1725.6,1723.9,3.0]
[1745357001283,0.8072,1725.6,1724.3,0.05797789]
[1745357001447,0.8072,1725.6,1723.9,3.0]
[1745357001651,5.79555105,1725.5,1724.0,5.85828279]
[1745357001854,5.79911221,1724.5,1722.8,0.43563128]
[1745357002079,0.8072,1725.1,1723.0,2.86367407]
[1745357002235,19.115,1725.0,1723.3,5.80258015]
[1745357002544,21.10722,1725.0,1723.6,5.80158409]
[1745357002735,0.55,1724.9,1723.7,0.05799565]
[1745357003148,0.55,1724.9,1723.8,3.0]
[1745357003372,0.55,1724.9,1723.9,0.05799401]
[1745357003572,19.115,1725.0,1724.1,3.0]
[1745357003775,19.115,1725.0,1724.2,0.05798536]
[1745357003982,19.115,1725.0,1724.2,3.05798536]
[1745357004184,19.115,1725.0,1724.3,0.05798292]
[1745357004353,19.115,1725.0,1724.3,3.0]
[1745357004549,19.115,1725.0,1724.0,3.0]
[1745357004777,19.115,1725.0,1724.0,0.3]
[1745357005083,19.115,1725.0,1723.4,22.50837778]
[1745357005084,0.55,1724.9,1723.8,3.0]
[1745357005277,0.55,1724.9,1723.8,8.80106617]
[1745357005447,0.55,1724.9,1723.4,19.69725801]
[1745357005647,0.55,1724.9,1723.5,8.80197321]
[1745357005846,8.31406556,1724.9,1723.6,6.681931]
[1745357006048,0.55,1724.7,1723.6,0.88019732]
[1745357006252,6.34793824,1724.8,1723.5,8.8019648]
[1745357006462,6.34793824,1724.8,1723.4,25.49958167]
[1745357006662,0.55,1724.8,1723.4,19.69725801]
[1745357006893,0.55,1724.8,1723.5,3.0]
[1745357007196,0.55,1724.6,1723.3,5.80268324]
[1745357007498,0.55,1724.4,1723.4,0.05800948]
[1745357007797,0.55,1724.4,1723.3,0.05800981]
[1745357008168,5.79958746,1724.3,1723.3,0.5112117]
[1745357008369,5.79932809,1724.4,1723.4,0.05801702]
[1745357008563,0.8282,1724.5,1723.3,0.5112117]
[1745357008796,3.0,1724.3,1723.3,0.5112117]
[1745357009102,6.0997912,1724.2,1723.3,0.5112117]
[1745357009313,24.91917359,1724.1,1723.3,0.5112117]
[1745357009463,5.80143815,1723.8,1723.3,0.5112117]
[1745357009865,5.80161795,1723.7,1723.3,0.5112117]
[1745357010091,11.602888,1723.8,1723.3,0.5112117]
[1745357010265,5.80143321,1723.8,1723.3,0.5112117]
[1745357010699,24.91925469,1724.1,1723.3,0.5112117]
[1745357010899,5.8006383,1724.0,1723.3,0.5112117]
[1745357011420,19.119,1724.1,1723.3,0.5112117]
[1745357011627,5.80062888,1724.0,1723.3,0.5112117]
[1745357011921,5.80075333,1724.0,1723.3,0.5112117]
[1745357012122,5.80083164,1723.9,1723.0,0.08049633]
[1745357012423,0.58008316,1723.9,1723.0,0.0224731]
[1745357012636,24.91930935,1724.1,1723.0,0.0224731]
[1745357012925,5.80065648,1724.0,1723.0,0.0224731]
[1745357013225,5.80046403,1724.0,1723.0,0.0224731]
[1745357013399,6.6298729,1723.7,1723.0,0.0224731]
[1745357013595,6.62986252,1723.7,1723.0,0.0224731]
[1745357013794,5.80210042,1723.6,1723.0,0.0224731]
[1745357014013,1.49118625,1723.7,1723.0,0.0224731]
[1745357014212,5.80232703,1723.5,1723.0,0.0224731]
[1745357014407,5.8024525,1723.5,1723.0,0.0224731]
[1745357014614,0.8282,1723.7,1723.0,0.0224731]
[1745357015722,6.62967768,1723.7,1723.0,0.0224731]
[1745357016195,5.80182456,1723.6,1723.0,0.0224731]
[1745357016594,0.8282,1723.7,1723.0,0.0224731]
[1745357016901,5.80212026,1723.6,1723.0,0.0224731]
[1745357017102,5.8020842,1723.6,1723.0,0.0224731]
[1745357017316,5.80259931,1723.4,1723.0,0.0224731]
[1745357017831,11.60534061,1723.4,1723.0,0.0224731]
[1745357017992,5.80259931,1723.4,1723.0,0.0224731]
[1745357018192,0.66302842,1723.6,1723.0,0.0224731]
[1745357018193,5.80307548,1723.3,1723.0,0.0224731]
[1745357018391,0.8282,1723.7,1723.0,0.0224731]
[1745357018619,5.80200229,1723.6,1723.0,0.0224731]
[1745357019043,5.80197865,1723.6,1723.0,0.0224731]
[1745357019470,5.80216151,1723.5,1723.0,0.0224731]
[1745357019842,5.80263269,1723.4,1723.0,0.0224731]
[1745357020030,11.60541293,1723.4,1723.0,0.0224731]
[1745357020231,7.0032,1723.7,1723.0,0.0224731]
[1745357020445,5.80328106,1723.2,1723.0,0.0224731]
[1745357020929,5.8034937,1723.1,1723.0,0.0224731]
[1745357024471,11.9784937,1723.1,1723.0,0.0224731]
[1745357024637,5.80477603,1722.8,1721.6,0.0226]
[1745357024838,5.80604899,1722.4,1721.6,0.0226]
[1745357025149,5.80517821,1722.6,1721.6,0.0226]
[1745357025337,5.80517821,1722.6,1721.1,0.0226]
[1745357025338,5.80753545,1722.0,1721.1,0.0226]
[1745357025539,6.62731871,1722.3,1721.1,0.0226]
[1745357025886,5.80686371,1722.1,1721.1,0.0226]
[1745357026062,5.8081404,1721.8,1721.1,0.0226]
[1745357026265,8.80666355,1722.2,1720.9,0.5112614]
[1745357026477,5.80777687,1721.9,1720.9,0.5112614]
[1745357026896,5.80794107,1721.8,1720.9,0.5112614]
[1745357027073,5.80776906,1721.9,1720.9,0.5112614]
[1745357027386,5.80871404,1721.6,1720.9,0.5112614]
[1745357027558,3.0,1722.0,1720.9,0.5112614]
[1745357027759,9.38812995,1722.0,1720.9,0.5112614]
[1745357027959,5.80823452,1721.7,1720.9,0.5112614]
[1745357028162,0.58069504,1722.0,1720.9,0.5112614]
[1745357028370,5.80768364,1721.9,1720.9,0.5112614]
[1745357028600,5.80923842,1721.4,1720.9,0.5112614]
[1745357029403,5.80923842,1721.4,1720.3,0.05811197]
[1745357029404,11.61930925,1721.3,1720.3,0.05811197]
[1745357029619,28.31515577,1721.3,1719.6,5.83773762]
[1745357029764,5.81082662,1721.0,1719.8,0.05811422]
[1745357029965,0.58108266,1721.0,1719.7,0.05812326]
[1745357030167,5.81057524,1721.0,1719.6,0.08072867]